[Event "*** SCC Grand Prix: Titled Tuesday Blitz"]
[Site "Chess.com"]
[Date "2020.06.02"]
[Round "10"]
[White "HouseOfDurin"]
[Black "NefeLV"]
[Result "1-0"]
[WhiteElo "1989"]
[BlackElo "1763"]
[TimeControl "180+1"]
[EndTime "11:58:32 PDT"]
[Termination "HouseOfDurin won by checkmate"]

1. d4 {[%clk 0:03:00.9]} 1... g6 {[%clk 0:02:57.6]} 2. h4 {[%clk 0:02:59.4]}
2... Bg7 {[%clk 0:02:58.5]} 3. h5 {[%clk 0:02:58.6]} 3... gxh5 {[%clk
0:02:56.3]} 4. Rxh5 {[%clk 0:02:57.2]} 4... Nf6 {[%clk 0:02:57.2]} 5. Rh1 {[%clk
0:02:56.6]} 5... c5 {[%clk 0:02:55.7]} 6. c3 {[%clk 0:02:54.4]} 6... cxd4 {[%clk
0:02:55.7]} 7. cxd4 {[%clk 0:02:54.1]} 7... Nc6 {[%clk 0:02:53.6]} 8. Nf3 {[%clk
0:02:52.6]} 8... Qa5+ {[%clk 0:02:49.8]} 9. Bd2 {[%clk 0:02:44]} 9... Qb6 {[%clk
0:02:48.8]} 10. Bc3 {[%clk 0:02:36.1]} 10... Ne4 {[%clk 0:02:47.6]} 11. Qd3
{[%clk 0:02:05.8]} 11... d5 {[%clk 0:02:41.5]} 12. e3 {[%clk 0:01:44.3]} 12...
Bf5 {[%clk 0:02:36.7]} 13. Qb5 {[%clk 0:01:12.5]} 13... e6 {[%clk 0:02:08]} 14.
Nbd2 {[%clk 0:01:03.9]} 14... Nxc3 {[%clk 0:02:01.8]} 15. bxc3 {[%clk
0:01:04.8]} 15... Qxb5 {[%clk 0:01:59.7]} 16. Bxb5 {[%clk 0:01:04.6]} 16... O-O
{[%clk 0:02:00.6]} 17. Nh4 {[%clk 0:00:53.5]} 17... Bg6 {[%clk 0:01:51]} 18.
Nxg6 {[%clk 0:00:51.7]} 18... hxg6 {[%clk 0:01:51.9]} 19. Rb1 {[%clk 0:00:43.7]}
19... a6 {[%clk 0:01:51]} 20. Bxc6 {[%clk 0:00:40.5]} 20... bxc6 {[%clk
0:01:51.7]} 21. Nb3 {[%clk 0:00:35.6]} 21... e5 {[%clk 0:01:47.9]} 22. Kd2
{[%clk 0:00:35.5]} 22... e4 {[%clk 0:01:45.7]} 23. Nc5 {[%clk 0:00:33.7]} 23...
Rfb8 {[%clk 0:01:41.9]} 24. Kc2 {[%clk 0:00:30]} 24... Bf8 {[%clk 0:01:36.9]}
25. Rxb8 {[%clk 0:00:27]} 25... Rxb8 {[%clk 0:01:36]} 26. Nxa6 {[%clk
0:00:27.5]} 26... Ra8 {[%clk 0:01:32.4]} 27. Nb4 {[%clk 0:00:19.1]} 27... Bxb4
{[%clk 0:01:31.2]} 28. cxb4 {[%clk 0:00:20]} 28... Rxa2+ {[%clk 0:01:31]} 29.
Kb3 {[%clk 0:00:20.5]} 29... Rxf2 {[%clk 0:01:30.7]} 30. Rc1 {[%clk 0:00:21]}
30... Re2 {[%clk 0:01:24.2]} 31. Rc3 {[%clk 0:00:20.5]} 31... Rxg2 {[%clk
0:01:23.8]} 32. Rxc6 {[%clk 0:00:19.4]} 32... Re2 {[%clk 0:01:20.4]} 33. Rc3
{[%clk 0:00:18.7]} 33... g5 {[%clk 0:01:19.9]} 34. b5 {[%clk 0:00:18.7]} 34...
Re1 {[%clk 0:01:20.2]} 35. Kb2 {[%clk 0:00:16.2]} 35... g4 {[%clk 0:01:15.3]}
36. b6 {[%clk 0:00:15.5]} 36... g3 {[%clk 0:01:15.6]} 37. b7 {[%clk 0:00:15.6]}
37... Re2+ {[%clk 0:01:15.2]} 38. Rc2 {[%clk 0:00:11.5]} 38... Rxc2+ {[%clk
0:01:11.2]} 39. Kxc2 {[%clk 0:00:12.4]} 39... g2 {[%clk 0:01:11.7]} 40. b8=Q+
{[%clk 0:00:12.5]} 40... Kh7 {[%clk 0:01:11.8]} 41. Qg3 {[%clk 0:00:13.3]} 41...
f5 {[%clk 0:00:34.1]} 42. Qxg2 {[%clk 0:00:11.3]} 42... Kh6 {[%clk 0:00:33.2]}
43. Qh2+ {[%clk 0:00:10.9]} 43... Kg5 {[%clk 0:00:32.3]} 44. Qf4+ {[%clk
0:00:11.8]} 44... Kh5 {[%clk 0:00:30.8]} 45. Kc3 {[%clk 0:00:12.7]} 45... Kg6
{[%clk 0:00:29.3]} 46. Kb4 {[%clk 0:00:13.6]} 46... Kh5 {[%clk 0:00:29.6]} 47.
Kc5 {[%clk 0:00:14.3]} 47... Kg6 {[%clk 0:00:30.2]} 48. Kxd5 {[%clk 0:00:14.7]}
48... Kh5 {[%clk 0:00:31.1]} 49. Kc6 {[%clk 0:00:15.1]} 49... Kg6 {[%clk
0:00:32]} 50. d5 {[%clk 0:00:13.6]} 50... Kh5 {[%clk 0:00:32.9]} 51. d6 {[%clk
0:00:13.5]} 51... Kg6 {[%clk 0:00:33.8]} 52. d7 {[%clk 0:00:13.5]} 52... Kh5
{[%clk 0:00:34.7]} 53. d8=Q {[%clk 0:00:12.9]} 53... Kg6 {[%clk 0:00:35.6]} 54.
Qd5 {[%clk 0:00:13]} 54... Kh5 {[%clk 0:00:36.5]} 55. Qdxf5# {[%clk 0:00:13]}
1-0

[Event "*** SCC Grand Prix: Titled Tuesday Blitz"]
[Site "Chess.com"]
[Date "2020.06.02"]
[Round "10"]
[White "ajian"]
[Black "Goryachkina"]
[Result "0-1"]
[WhiteElo "2457"]
[BlackElo "2669"]
[TimeControl "180+1"]
[EndTime "11:58:33 PDT"]
[Termination "Goryachkina won by resignation"]

1. d4 {[%clk 0:03:00.9]} 1... d5 {[%clk 0:02:59.6]} 2. c4 {[%clk 0:03:01]} 2...
e6 {[%clk 0:02:59.7]} 3. Nc3 {[%clk 0:03:01]} 3... Nf6 {[%clk 0:02:59.8]} 4.
cxd5 {[%clk 0:03:01.1]} 4... exd5 {[%clk 0:03:00.7]} 5. Bg5 {[%clk 0:03:01.2]}
5... c6 {[%clk 0:03:00.8]} 6. e3 {[%clk 0:03:00.2]} 6... h6 {[%clk 0:03:01.2]}
7. Bh4 {[%clk 0:02:59.8]} 7... Be7 {[%clk 0:03:01.6]} 8. Bd3 {[%clk 0:02:59.7]}
8... Ne4 {[%clk 0:03:01.6]} 9. Bxe7 {[%clk 0:02:51.6]} 9... Qxe7 {[%clk
0:03:02.5]} 10. Qc2 {[%clk 0:02:51.6]} 10... Nxc3 {[%clk 0:03:00.1]} 11. bxc3
{[%clk 0:02:49.6]} 11... c5 {[%clk 0:02:57.9]} 12. Ne2 {[%clk 0:02:38.2]} 12...
O-O {[%clk 0:02:51.4]} 13. O-O {[%clk 0:02:37.9]} 13... b6 {[%clk 0:02:45]} 14.
a4 {[%clk 0:02:36.2]} 14... c4 {[%clk 0:02:29]} 15. Bf5 {[%clk 0:02:35.4]} 15...
Nc6 {[%clk 0:02:27.9]} 16. Rfe1 {[%clk 0:02:27.4]} 16... Qf6 {[%clk 0:02:13.4]}
17. Ng3 {[%clk 0:02:26.1]} 17... Bxf5 {[%clk 0:02:04.3]} 18. Nxf5 {[%clk
0:02:24.7]} 18... Rfe8 {[%clk 0:02:02.5]} 19. Ng3 {[%clk 0:02:15.7]} 19... Re7
{[%clk 0:01:57.6]} 20. e4 {[%clk 0:02:10.5]} 20... dxe4 {[%clk 0:01:43.6]} 21.
Rxe4 {[%clk 0:02:02.8]} 21... Rae8 {[%clk 0:01:39.8]} 22. Rae1 {[%clk
0:02:00.1]} 22... Qg6 {[%clk 0:01:27.4]} 23. Qb1 {[%clk 0:01:47.4]} 23... Rxe4
{[%clk 0:01:18.1]} 24. Rxe4 {[%clk 0:01:46.4]} 24... Rxe4 {[%clk 0:01:17.5]} 25.
Nxe4 {[%clk 0:01:21.3]} 25... Ne7 {[%clk 0:01:16.6]} 26. f3 {[%clk 0:01:09.5]}
26... Qc6 {[%clk 0:01:03.1]} 27. Qa2 {[%clk 0:00:50.6]} 27... Nd5 {[%clk
0:01:00.5]} 28. Qa3 {[%clk 0:00:40.6]} 28... Qe6 {[%clk 0:00:59.1]} 29. Qc1
{[%clk 0:00:20.9]} 29... f5 {[%clk 0:00:53.7]} 30. Nf2 {[%clk 0:00:18.4]} 30...
Kf7 {[%clk 0:00:49.5]} 31. h3 {[%clk 0:00:17.6]} 31... Qe3 {[%clk 0:00:44.3]}
32. Qxe3 {[%clk 0:00:14.2]} 32... Nxe3 {[%clk 0:00:45.2]} 33. g3 {[%clk
0:00:08.2]} 33... Ke6 {[%clk 0:00:44.3]} 34. g4 {[%clk 0:00:05.3]} 34... g6
{[%clk 0:00:42.6]} 35. Kh2 {[%clk 0:00:04.4]} 35... a6 {[%clk 0:00:36.3]} 36.
Kg3 {[%clk 0:00:04.1]} 36... b5 {[%clk 0:00:32.4]} 37. axb5 {[%clk 0:00:05]}
37... axb5 {[%clk 0:00:33.3]} 38. Kf4 {[%clk 0:00:04.5]} 38... Nd5+ {[%clk
0:00:33.4]} 39. Kg3 {[%clk 0:00:03.2]} 39... Nxc3 {[%clk 0:00:33.1]} 40. gxf5+
{[%clk 0:00:03.2]} 40... gxf5 {[%clk 0:00:32.1]} 41. Kf4 {[%clk 0:00:03.7]}
41... Nd5+ {[%clk 0:00:30.6]} 42. Kg3 {[%clk 0:00:03.3]} 42... b4 {[%clk
0:00:31]} 43. Nd1 {[%clk 0:00:03.7]} 43... b3 {[%clk 0:00:30.7]} 44. Kf2 {[%clk
0:00:03.3]} 44... c3 {[%clk 0:00:31]} 45. Nxc3 {[%clk 0:00:02.2]} 45... Nxc3
{[%clk 0:00:30.8]} 46. Ke3 {[%clk 0:00:03.1]} 46... b2 {[%clk 0:00:31.1]} 47.
Kd3 {[%clk 0:00:04]} 47... b1=Q+ {[%clk 0:00:31.2]} 48. Kxc3 {[%clk 0:00:04.9]}
48... Qf1 {[%clk 0:00:31.1]} 0-1

[Event "*** SCC Grand Prix: Titled Tuesday Blitz"]
[Site "Chess.com"]
[Date "2020.06.02"]
[Round "10"]
[White "goofypenguin96"]
[Black "Alopekos"]
[Result "1-0"]
[WhiteElo "2312"]
[BlackElo "2490"]
[TimeControl "180+1"]
[EndTime "11:58:33 PDT"]
[Termination "goofypenguin96 won on time"]

1. e4 {[%clk 0:03:00.9]} 1... c5 {[%clk 0:02:59.6]} 2. c3 {[%clk 0:03:00.4]}
2... g6 {[%clk 0:02:58.8]} 3. d4 {[%clk 0:03:00.3]} 3... cxd4 {[%clk 0:02:59.3]}
4. cxd4 {[%clk 0:03:01.2]} 4... d5 {[%clk 0:02:58.9]} 5. exd5 {[%clk 0:02:52.6]}
5... Nf6 {[%clk 0:02:58.7]} 6. Bb5+ {[%clk 0:02:47.7]} 6... Nbd7 {[%clk
0:02:56.3]} 7. Nc3 {[%clk 0:02:43.8]} 7... Bg7 {[%clk 0:02:56]} 8. d6 {[%clk
0:02:42.5]} 8... exd6 {[%clk 0:02:54.5]} 9. Qe2+ {[%clk 0:02:41.9]} 9... Qe7
{[%clk 0:02:54.4]} 10. Qxe7+ {[%clk 0:02:41.7]} 10... Kxe7 {[%clk 0:02:55.3]}
11. Nf3 {[%clk 0:02:40.3]} 11... h6 {[%clk 0:02:29.2]} 12. O-O {[%clk
0:02:34.7]} 12... Nb6 {[%clk 0:02:29.2]} 13. Bf4 {[%clk 0:02:30]} 13... Nbd5
{[%clk 0:02:17.2]} 14. Bg3 {[%clk 0:02:17.5]} 14... Be6 {[%clk 0:02:15.3]} 15.
Rfe1 {[%clk 0:02:08.6]} 15... Rhc8 {[%clk 0:02:13.3]} 16. Rac1 {[%clk
0:02:03.6]} 16... a6 {[%clk 0:02:08.1]} 17. Bd3 {[%clk 0:01:57]} 17... Kd7
{[%clk 0:02:00.9]} 18. Nd2 {[%clk 0:01:44.4]} 18... b5 {[%clk 0:01:32.6]} 19.
Nde4 {[%clk 0:01:31.9]} 19... Nxe4 {[%clk 0:00:56.2]} 20. Bxe4 {[%clk
0:01:25.9]} 20... Nxc3 {[%clk 0:00:53.3]} 21. bxc3 {[%clk 0:01:20.8]} 21... d5
{[%clk 0:00:47.2]} 22. Bd3 {[%clk 0:01:20.2]} 22... Rc6 {[%clk 0:00:42.1]} 23.
a4 {[%clk 0:01:09]} 23... bxa4 {[%clk 0:00:41.5]} 24. Bc2 {[%clk 0:01:08.8]}
24... Rc4 {[%clk 0:00:39.5]} 25. Bd3 {[%clk 0:01:05]} 25... Rc6 {[%clk
0:00:38.8]} 26. Bc2 {[%clk 0:01:05.1]} 26... Rc4 {[%clk 0:00:25.7]} 27. Bd3
{[%clk 0:01:05]} 27... Rac8 {[%clk 0:00:26.3]} 28. Bxc4 {[%clk 0:01:00]} 28...
Rxc4 {[%clk 0:00:27.2]} 29. Red1 {[%clk 0:00:57]} 29... Bf5 {[%clk 0:00:20.8]}
30. f3 {[%clk 0:00:53.4]} 30... a3 {[%clk 0:00:16.9]} 31. Be1 {[%clk 0:00:47]}
31... Bf8 {[%clk 0:00:04.1]} 32. Ra1 {[%clk 0:00:44.8]} 32... Ra4 {[%clk
0:00:03.2]} 33. Rd2 {[%clk 0:00:41.1]} 33... Kc6 {[%clk 0:00:03.1]} 34. g4
{[%clk 0:00:38.3]} 34... Be6 {[%clk 0:00:02.4]} 35. Rda2 {[%clk 0:00:33]} 35...
Kb5 {[%clk 0:00:02.3]} 36. Bd2 {[%clk 0:00:28.9]} 36... Kc4 {[%clk 0:00:02.2]}
37. Bc1 {[%clk 0:00:27.8]} 37... Kb3 {[%clk 0:00:02.5]} 38. Kf2 {[%clk
0:00:20.9]} 38... h5 {[%clk 0:00:02.7]} 39. g5 {[%clk 0:00:20.4]} 39... Bf5
{[%clk 0:00:02.9]} 40. f4 {[%clk 0:00:19.6]} 40... Bb1 {[%clk 0:00:01]} 41. Rd2
{[%clk 0:00:16.6]} 1-0

[Event "*** SCC Grand Prix: Titled Tuesday Blitz"]
[Site "Chess.com"]
[Date "2020.06.02"]
[Round "10"]
[White "Angel_Hranitel_37"]
[Black "suyu28"]
[Result "0-1"]
[WhiteElo "2406"]
[BlackElo "2591"]
[TimeControl "180+1"]
[EndTime "11:58:34 PDT"]
[Termination "suyu28 won by checkmate"]

1. d4 {[%clk 0:03:00.9]} 1... Nf6 {[%clk 0:02:59.9]} 2. Nf3 {[%clk 0:03:01.3]}
2... c5 {[%clk 0:02:59.7]} 3. d5 {[%clk 0:03:00.8]} 3... e6 {[%clk 0:03:00.3]}
4. c4 {[%clk 0:02:59.9]} 4... d6 {[%clk 0:03:00.9]} 5. Nc3 {[%clk 0:02:59.5]}
5... e5 {[%clk 0:03:01.3]} 6. e4 {[%clk 0:02:56]} 6... Be7 {[%clk 0:03:01.9]} 7.
g3 {[%clk 0:02:56.6]} 7... O-O {[%clk 0:03:02]} 8. Bg2 {[%clk 0:02:57.3]} 8...
Nbd7 {[%clk 0:03:01.9]} 9. O-O {[%clk 0:02:57.9]} 9... Re8 {[%clk 0:03:02.5]}
10. Ne1 {[%clk 0:02:55.7]} 10... Nf8 {[%clk 0:03:03.2]} 11. Nd3 {[%clk 0:02:56]}
11... Ng6 {[%clk 0:03:03.5]} 12. f4 {[%clk 0:02:47.3]} 12... exf4 {[%clk
0:03:01.7]} 13. gxf4 {[%clk 0:02:48.2]} 13... Bf8 {[%clk 0:03:01.8]} 14. Qe2
{[%clk 0:02:20.8]} 14... b5 {[%clk 0:03:00.6]} 15. Nxb5 {[%clk 0:02:13.9]} 15...
Nh4 {[%clk 0:02:46.4]} 16. e5 {[%clk 0:02:08.5]} 16... Ng4 {[%clk 0:02:38.8]}
17. h3 {[%clk 0:01:26.9]} 17... Nh6 {[%clk 0:02:29]} 18. Be4 {[%clk 0:01:25.8]}
18... Bxh3 {[%clk 0:02:27.6]} 19. Rf2 {[%clk 0:01:17]} 19... Bf5 {[%clk
0:02:22.8]} 20. Rh2 {[%clk 0:01:13.4]} 20... Bxe4 {[%clk 0:02:12.5]} 21. Qxe4
{[%clk 0:01:14.3]} 21... N6f5 {[%clk 0:02:03.3]} 22. Bd2 {[%clk 0:00:58.4]}
22... a6 {[%clk 0:01:56.3]} 23. Nc3 {[%clk 0:00:56.8]} 23... Nd4 {[%clk
0:01:56.5]} 24. Kh1 {[%clk 0:00:51]} 24... g6 {[%clk 0:01:54.6]} 25. Rf1 {[%clk
0:00:32.6]} 25... Bg7 {[%clk 0:01:53.1]} 26. Ne2 {[%clk 0:00:29]} 26... Nhf5
{[%clk 0:01:47.5]} 27. Nxd4 {[%clk 0:00:28]} 27... Ng3+ {[%clk 0:01:47.5]} 28.
Kg2 {[%clk 0:00:28.4]} 28... Nxe4 {[%clk 0:01:46.6]} 29. Nc6 {[%clk 0:00:29.2]}
29... Qd7 {[%clk 0:01:40.8]} 30. Bc1 {[%clk 0:00:25.8]} 30... Qg4+ {[%clk
0:01:40.5]} 31. Kh1 {[%clk 0:00:26.4]} 31... Ng3+ {[%clk 0:01:40.5]} 32. Kg2
{[%clk 0:00:27.3]} 32... Nxf1+ {[%clk 0:01:40.3]} 33. Kxf1 {[%clk 0:00:28.2]}
33... Qf3+ {[%clk 0:01:39]} 34. Nf2 {[%clk 0:00:27.6]} 34... dxe5 {[%clk
0:01:38.8]} 35. Rh3 {[%clk 0:00:27.9]} 35... e4 {[%clk 0:01:12.5]} 36. Rxf3
{[%clk 0:00:27]} 36... exf3 {[%clk 0:01:13.4]} 37. Nd3 {[%clk 0:00:22.9]} 37...
Re2 {[%clk 0:01:05.6]} 38. Nde5 {[%clk 0:00:20.1]} 38... Bxe5 {[%clk 0:01:02.8]}
39. fxe5 {[%clk 0:00:21]} 39... Kf8 {[%clk 0:00:55.5]} 40. d6 {[%clk 0:00:15.4]}
40... Ke8 {[%clk 0:00:55.7]} 41. Bf4 {[%clk 0:00:10]} 41... h5 {[%clk
0:00:52.4]} 42. Ne7 {[%clk 0:00:10.2]} 42... Rb8 {[%clk 0:00:46.2]} 43. b3
{[%clk 0:00:08.8]} 43... Rxa2 {[%clk 0:00:44.7]} 44. Nd5 {[%clk 0:00:08.5]}
44... Rxb3 {[%clk 0:00:43.8]} 45. Nf6+ {[%clk 0:00:05.3]} 45... Kd8 {[%clk
0:00:43.7]} 46. Bd2 {[%clk 0:00:02.2]} 46... Rb1+ {[%clk 0:00:43.4]} 47. Kf2
{[%clk 0:00:01.9]} 47... Rxd2+ {[%clk 0:00:43]} 48. Kxf3 {[%clk 0:00:02.8]}
48... Rb3+ {[%clk 0:00:43.2]} 49. Ke4 {[%clk 0:00:03.6]} 49... Rd4# {[%clk
0:00:42.9]} 0-1

[Event "*** SCC Grand Prix: Titled Tuesday Blitz"]
[Site "Chess.com"]
[Date "2020.06.02"]
[Round "10"]
[White "Koalaskakistis"]
[Black "valeriocarnicelli"]
[Result "1-0"]
[WhiteElo "2446"]
[BlackElo "2593"]
[TimeControl "180+1"]
[EndTime "11:58:36 PDT"]
[Termination "Koalaskakistis won by resignation"]

1. Nf3 {[%clk 0:03:00.9]} 1... Nf6 {[%clk 0:02:44]} 2. g3 {[%clk 0:03:00.7]}
2... g6 {[%clk 0:02:44.3]} 3. Bg2 {[%clk 0:03:01.3]} 3... Bg7 {[%clk 0:02:44.9]}
4. O-O {[%clk 0:03:02.2]} 4... O-O {[%clk 0:02:45.3]} 5. d3 {[%clk 0:03:03.1]}
5... d6 {[%clk 0:02:45.9]} 6. c4 {[%clk 0:03:03.1]} 6... Nbd7 {[%clk 0:02:46.1]}
7. Nc3 {[%clk 0:03:02.5]} 7... e5 {[%clk 0:02:46.2]} 8. Rb1 {[%clk 0:03:01.9]}
8... Re8 {[%clk 0:02:46]} 9. e4 {[%clk 0:02:56.9]} 9... a5 {[%clk 0:02:45.6]}
10. a3 {[%clk 0:02:57]} 10... Nc5 {[%clk 0:02:37.4]} 11. b4 {[%clk 0:02:57]}
11... axb4 {[%clk 0:02:37.1]} 12. axb4 {[%clk 0:02:57.9]} 12... Ne6 {[%clk
0:02:37.6]} 13. b5 {[%clk 0:02:53.4]} 13... Nd7 {[%clk 0:02:26.7]} 14. Be3
{[%clk 0:02:42.7]} 14... Ndc5 {[%clk 0:02:23.6]} 15. Nd5 {[%clk 0:02:40.2]}
15... Ra3 {[%clk 0:02:19.9]} 16. Ne1 {[%clk 0:02:24.4]} 16... Bd7 {[%clk
0:02:08.8]} 17. Ra1 {[%clk 0:02:19.9]} 17... Qa8 {[%clk 0:02:07.3]} 18. Rxa3
{[%clk 0:01:51.7]} 18... Qxa3 {[%clk 0:02:06.8]} 19. Bxc5 {[%clk 0:01:45.6]}
19... Qxc5 {[%clk 0:02:03.3]} 20. Qa1 {[%clk 0:01:33.7]} 20... c6 {[%clk
0:02:02.3]} 21. bxc6 {[%clk 0:01:33.7]} 21... bxc6 {[%clk 0:02:02.7]} 22. Ne3
{[%clk 0:01:33.8]} 22... Nd4 {[%clk 0:02:00]} 23. N1c2 {[%clk 0:01:33.2]} 23...
Nxc2 {[%clk 0:01:54.4]} 24. Nxc2 {[%clk 0:01:34.1]} 24... Bg4 {[%clk 0:01:53.5]}
25. Rb1 {[%clk 0:01:26.8]} 25... Be2 {[%clk 0:01:50]} 26. Bf1 {[%clk 0:01:23.8]}
26... Bxf1 {[%clk 0:01:48]} 27. Kxf1 {[%clk 0:01:24.7]} 27... f5 {[%clk
0:01:48.2]} 28. Qa3 {[%clk 0:01:19]} 28... Qxa3 {[%clk 0:01:41.7]} 29. Nxa3
{[%clk 0:01:19.9]} 29... Ra8 {[%clk 0:01:40.9]} 30. Nc2 {[%clk 0:01:19.3]} 30...
fxe4 {[%clk 0:01:40.7]} 31. dxe4 {[%clk 0:01:20.2]} 31... Ra4 {[%clk 0:01:40.8]}
32. Ne3 {[%clk 0:01:02.8]} 32... Bh6 {[%clk 0:01:40.9]} 33. Rb8+ {[%clk
0:01:02.7]} 33... Kf7 {[%clk 0:01:40.5]} 34. Rb7+ {[%clk 0:01:02.4]} 34... Ke6
{[%clk 0:01:40.3]} 35. Ng4 {[%clk 0:01:01.5]} 35... Bf8 {[%clk 0:01:32.2]} 36.
Ne3 {[%clk 0:00:46.7]} 36... Bh6 {[%clk 0:01:31]} 37. Ng4 {[%clk 0:00:46.3]}
37... Bg5 {[%clk 0:01:29.6]} 38. Rxh7 {[%clk 0:00:45.4]} 38... Rxc4 {[%clk
0:01:28.1]} 39. f3 {[%clk 0:00:37.3]} 39... d5 {[%clk 0:01:24.9]} 40. Rg7 {[%clk
0:00:19.6]} 40... dxe4 {[%clk 0:01:23.1]} 41. fxe4 {[%clk 0:00:15.6]} 41... Rxe4
{[%clk 0:01:22.9]} 42. Nf2 {[%clk 0:00:16.1]} 42... Rc4 {[%clk 0:01:05.1]} 43.
Rxg6+ {[%clk 0:00:15.5]} 43... Bf6 {[%clk 0:01:05.5]} 44. Ng4 {[%clk 0:00:13.7]}
44... Kf5 {[%clk 0:01:01]} 45. Rxf6+ {[%clk 0:00:13.7]} 45... Kxg4 {[%clk
0:01:01.1]} 46. Kg2 {[%clk 0:00:12.5]} 46... Rc2+ {[%clk 0:01:00.7]} 47. Rf2
{[%clk 0:00:13]} 47... Rxf2+ {[%clk 0:00:56]} 48. Kxf2 {[%clk 0:00:13.9]} 48...
c5 {[%clk 0:00:56]} 49. Ke3 {[%clk 0:00:13.3]} 49... c4 {[%clk 0:00:55.8]} 50.
h4 {[%clk 0:00:07.7]} 50... c3 {[%clk 0:00:55.3]} 51. Kd3 {[%clk 0:00:07.8]}
51... Kf3 {[%clk 0:00:55]} 52. h5 {[%clk 0:00:04.9]} 52... e4+ {[%clk
0:00:55.3]} 53. Kc2 {[%clk 0:00:04.9]} 53... e3 {[%clk 0:00:56.2]} 54. h6 {[%clk
0:00:05.3]} 54... e2 {[%clk 0:00:56]} 55. h7 {[%clk 0:00:05.1]} 55... e1=Q
{[%clk 0:00:56]} 56. h8=Q {[%clk 0:00:06]} 56... Qd2+ {[%clk 0:00:56.2]} 57. Kb3
{[%clk 0:00:05.8]} 57... Qb2+ {[%clk 0:00:56]} 58. Kc4 {[%clk 0:00:05.2]} 58...
c2 {[%clk 0:00:56.1]} 59. Qxb2 {[%clk 0:00:05.1]} 1-0

[Event "*** SCC Grand Prix: Titled Tuesday Blitz"]
[Site "Chess.com"]
[Date "2020.06.02"]
[Round "10"]
[White "PavlovDanila"]
[Black "Dr-Bassem"]
[Result "0-1"]
[WhiteElo "2644"]
[BlackElo "2811"]
[TimeControl "180+1"]
[EndTime "11:58:38 PDT"]
[Termination "Dr-Bassem won by resignation"]

1. e4 {[%clk 0:03:00.9]} 1... e5 {[%clk 0:02:59.8]} 2. Nf3 {[%clk 0:03:01]} 2...
Nc6 {[%clk 0:03:00.5]} 3. Bb5 {[%clk 0:03:01.2]} 3... a6 {[%clk 0:03:00.8]} 4.
Bxc6 {[%clk 0:03:01.6]} 4... dxc6 {[%clk 0:03:00.2]} 5. O-O {[%clk 0:03:02.5]}
5... f6 {[%clk 0:02:59.1]} 6. d4 {[%clk 0:03:02.3]} 6... exd4 {[%clk 0:03:00]}
7. Nxd4 {[%clk 0:03:02.8]} 7... c5 {[%clk 0:03:00.4]} 8. Nb3 {[%clk 0:03:03]}
8... Qxd1 {[%clk 0:03:01.1]} 9. Rxd1 {[%clk 0:03:03.7]} 9... Bd7 {[%clk
0:03:01.7]} 10. Nc3 {[%clk 0:03:03.1]} 10... O-O-O {[%clk 0:03:01.9]} 11. Bf4
{[%clk 0:02:57.2]} 11... Be6 {[%clk 0:02:59.9]} 12. Rxd8+ {[%clk 0:02:55.2]}
12... Kxd8 {[%clk 0:03:00.8]} 13. Rd1+ {[%clk 0:02:55.7]} 13... Kc8 {[%clk
0:03:01.3]} 14. Nd5 {[%clk 0:02:56]} 14... Bxd5 {[%clk 0:03:01.8]} 15. exd5
{[%clk 0:02:42.5]} 15... Bd6 {[%clk 0:02:59.7]} 16. Bxd6 {[%clk 0:02:40.2]}
16... cxd6 {[%clk 0:03:00.6]} 17. Re1 {[%clk 0:02:39.9]} 17... Kd7 {[%clk
0:03:01.1]} 18. Na5 {[%clk 0:02:36.8]} 18... Ne7 {[%clk 0:03:01.6]} 19. c4
{[%clk 0:02:35.3]} 19... b6 {[%clk 0:02:58.8]} 20. Nb3 {[%clk 0:02:04.2]} 20...
b5 {[%clk 0:02:58.5]} 21. Nd2 {[%clk 0:02:04.2]} 21... bxc4 {[%clk 0:02:57.9]}
22. Nxc4 {[%clk 0:02:05.1]} 22... Nxd5 {[%clk 0:02:58.1]} 23. Rd1 {[%clk
0:02:04.9]} 23... Re8 {[%clk 0:02:58.5]} 24. Kf1 {[%clk 0:01:51.4]} 24... Re4
{[%clk 0:02:55.1]} 25. b3 {[%clk 0:01:45.9]} 25... Ke6 {[%clk 0:02:30.5]} 26. f3
{[%clk 0:01:28.9]} 26... Ne3+ {[%clk 0:02:17.8]} 27. Nxe3 {[%clk 0:01:18.1]}
27... Rxe3 {[%clk 0:02:18.7]} 28. Kf2 {[%clk 0:01:15.9]} 28... Rc3 {[%clk
0:02:17.6]} 29. Rd2 {[%clk 0:01:04.2]} 29... d5 {[%clk 0:02:16.7]} 30. Re2+
{[%clk 0:01:01.5]} 30... Kd6 {[%clk 0:02:16.7]} 31. Ke1 {[%clk 0:01:01.6]} 31...
Rc1+ {[%clk 0:02:09.7]} 32. Kd2 {[%clk 0:01:01.4]} 32... Ra1 {[%clk 0:02:03.9]}
33. Kd3 {[%clk 0:01:01.2]} 33... a5 {[%clk 0:01:59.2]} 34. Kc3 {[%clk
0:01:00.6]} 34... h5 {[%clk 0:01:55.4]} 35. Kb2 {[%clk 0:00:58.6]} 35... Rh1
{[%clk 0:01:53.1]} 36. h3 {[%clk 0:00:58.3]} 36... h4 {[%clk 0:01:48]} 37. Ka3
{[%clk 0:00:49.1]} 37... d4 {[%clk 0:01:47.7]} 38. Ka4 {[%clk 0:00:49.5]} 38...
Kd5 {[%clk 0:01:46]} 39. Re8 {[%clk 0:00:45.7]} 39... Ra1 {[%clk 0:01:40.4]} 40.
Kxa5 {[%clk 0:00:43.7]} 40... Rxa2+ {[%clk 0:01:36.8]} 41. Kb5 {[%clk
0:00:43.9]} 41... Rxg2 {[%clk 0:01:34.2]} 42. Rd8+ {[%clk 0:00:43.6]} 42... Ke5
{[%clk 0:01:34.5]} 43. Kxc5 {[%clk 0:00:42.2]} 43... Rc2+ {[%clk 0:01:34.6]} 44.
Kb5 {[%clk 0:00:41.4]} 44... Rc3 {[%clk 0:01:34.1]} 45. Re8+ {[%clk 0:00:36.1]}
45... Kf4 {[%clk 0:01:31.1]} 46. Re4+ {[%clk 0:00:21]} 46... Kg3 {[%clk
0:01:18.7]} 47. Rxd4 {[%clk 0:00:15.5]} 47... Rxb3+ {[%clk 0:01:13]} 48. Kc4
{[%clk 0:00:15]} 48... Rxf3 {[%clk 0:01:11.9]} 49. Rg4+ {[%clk 0:00:15]} 49...
Kxh3 {[%clk 0:01:11.3]} 50. Rxg7 {[%clk 0:00:15.9]} 50... Rg3 {[%clk 0:01:08.2]}
51. Rh7 {[%clk 0:00:15.8]} 51... Rg4+ {[%clk 0:01:07.3]} 52. Kd3 {[%clk
0:00:15.4]} 52... Kg2 {[%clk 0:01:02.5]} 53. Ra7 {[%clk 0:00:13.9]} 53... h3
{[%clk 0:01:02.6]} 54. Ra2+ {[%clk 0:00:13.8]} 54... Kg3 {[%clk 0:01:02.7]} 55.
Ra1 {[%clk 0:00:08.6]} 55... h2 {[%clk 0:01:02.9]} 56. Ke3 {[%clk 0:00:09.1]}
56... Kg2 {[%clk 0:01:00]} 57. Ra2+ {[%clk 0:00:08.8]} 57... Kh3 {[%clk
0:01:00.5]} 58. Ra1 {[%clk 0:00:08.4]} 58... Rg1 {[%clk 0:01:00.3]} 59. Ra8
{[%clk 0:00:08.9]} 59... h1=Q {[%clk 0:00:59.6]} 60. Rh8+ {[%clk 0:00:08.6]}
60... Kg4 {[%clk 0:00:59.7]} 0-1